[Event "DVM U12w 2024"]
[Site "Bad Homburg"]
[Date "2024.12.27"]
[Round "1"]
[White "Slowik, Anna"]
[Black "Helbig, Frieda"]
[Result "0-1"]
[ECO "B10"]
[WhiteElo "1103"]
[BlackElo "1443"]
[Annotator "NA RC"]
[PlyCount "130"]
[EventDate "2024.12.23"]
[EventType "team-tourn"]
[EventRounds "7"]
[EventCountry "GER"]
[SourceTitle "playchess.com"]
[Source "ChessBase"]
[SourceQuality "1"]
[TimeControl "40/5400+30:1800+30"]

1. e4 {[%emt 0:00:03]} c6 {[%emt 0:00:10]} 2. Nf3 {[%emt 0:00:10]} d5 {[%emt 0:00:12]} 3. exd5 {[%emt 0:00:08]} cxd5 {[%emt 0:00:10]} 4. Ne5 {[%emt 0:00:12]} Be6 {[%emt 0:01:05]} 5. Bb5+ {[%emt 0:01:39]} Nd7 {[%emt 0:00:19]} 6. Nc3 {[%emt 0:02:11]} a6 {[%emt 0:00:17]} 7. Bxd7+ {[%emt 0:03:34]} Bxd7 {[%emt 0:00:47]} 8. Nxd7 {[%emt 0:03:22]} Qxd7 {[%emt 0:00:12]} 9. O-O {[%emt 0:01:40]} e6 {[%emt 0:00:15]} 10. a3 {[%emt 0:00:18]} Nf6 {[%emt 0:00:09]} 11. Re1 {[%emt 0:01:04]} Be7 {[%emt 0:02:05]} 12. d4 {[%emt 0:01:54]} O-O {[%emt 0:00:00]} 13. Bg5 {[%emt 0:04:37]} h6 {[%emt 0:00:00]} 14. Bh4 {[%emt 0:00:55]} Rac8 {[%emt 0:00:00]} 15. Ne2 {[%emt 0:02:24]} Ne4 {[%emt 0:00:40]} 16. Bxe7 {[%emt 0:00:37]} Qxe7 {[%emt 0:00:14]} 17. f3 {[%emt 0:00:37]} Nf6 {[%emt 0:00:31]} 18. Ng3 {[%emt 0:01:44]} Qd6 {[%emt 0:00:58]} 19. Qd2 {[%emt 0:03:15]} Rfe8 {[%emt 0:02:43]} 20. b3 {[%emt 0:08:17]} e5 {[%emt 0:00:00]} 21. dxe5 {[%emt 0:04:02]} Rxe5 {[%emt 0:00:00]} 22. Rxe5 {[%emt 0:01:30]} Qxe5 {[%emt 0:00:02]} 23. Re1 {[%emt 0:00:10]} Qb2 {[%emt 0:00:43]} 24. Qc1 {[%emt 0:02:18]} Qc3 {[%emt 0:01:36]} 25. Nf5 {[%emt 0:02:12]} Qc5+ {[%emt 0:01:05]} 26. Kh1 {[%emt 0:00:39]} Kh7 {[%emt 0:01:35]} 27. Re7 {[%emt 0:01:50]} Qf2 {[%emt 0:01:01]} 28. Rxf7 {[%emt 0:01:59]} Kg6 {[%emt 0:03:55]} 29. Ne7+ {[%emt 0:11:25]} Kxf7 {[%emt 0:01:53]} 30. Nxc8 {[%emt 0:00:14]} d4 {[%emt 0:00:38]} 31. Nd6+ {[%emt 0:01:17]} Ke6 {[%emt 0:00:14]} 32. Ne4 {[%emt 0:00:54]} Nxe4 {[%emt 0:00:26]} 33. fxe4 {[%emt 0:00:24]} Ke5 {[%emt 0:00:15]} 34. Qg1 {[%emt 0:01:27]} Qxc2 {[%emt 0:00:21]} 35. b4 {[%emt 0:03:02]} Qb3 {[%emt 0:00:30]} 36. Qc1 {[%emt 0:01:36]} Kxe4 {[%emt 0:00:27]} 37. Kg1 {[%emt 0:00:28]} Qe3+ {[%emt 0:00:52]} 38. Qxe3+ {[%emt 0:00:24]} Kxe3 {[%emt 0:00:12]} 39. Kf1 {[%emt 0:00:33]} Kd3 {[%emt 0:00:34]} 40. Ke1 {[%emt 0:00:41]} Kc2 {[%emt 0:00:08]} 41. g4 {[%emt 0:30:11]} d3 {[%emt 0:30:06]} 42. Kf2 {[%emt 0:00:30]} d2 {[%emt 0:00:09]} 43. Kg3 {[%emt 0:00:05]} d1=Q {[%emt 0:00:18]} 44. Kh4 {[%emt 0:00:25]} g5+ {[%emt 0:00:23]} 45. Kh5 {[%emt 0:00:11]} Qd8 {[%emt 0:00:25]} 46. Kxh6 {[%emt 0:00:22]} Qf6+ {[%emt 0:00:19]} 47. Kh5 {[%emt 0:00:51]} Qf4 {[%emt 0:00:54]} 48. h4 {[%emt 0:00:18]} gxh4 {[%emt 0:00:25]} 49. Kxh4 {[%emt 0:00:12]} Kd2 {[%emt 0:01:02]} 50. Kh5 {[%emt 0:00:10]} Qh2+ {[%emt 0:00:23]} 51. Kg6 {[%emt 0:00:29]} Ke3 {[%emt 0:00:13]} 52. g5 {[%emt 0:00:10]} Kf4 {[%emt 0:00:31]} 53. Kf6 {[%emt 0:00:11]} Qh4 {[%emt 0:00:14]} 54. Ke6 {[%emt 0:00:43]} Qxg5 {[%emt 0:00:21]} 55. Kd6 {[%emt 0:00:10]} Qb5 {[%emt 0:00:15]} 56. Kc7 {[%emt 0:00:25]} Qa4 {[%emt 0:00:23]} 57. Kb6 {[%emt 0:00:57]} Qxa3 {[%emt 0:00:15]} 58. Ka7 {[%emt 0:00:14]} Qxb4 {[%emt 0:00:18]} 59. Ka8 {[%emt 0:00:12]} b5 {[%emt 0:00:17]} 60. Ka7 {[%emt 0:00:19]} a5 {[%emt 0:00:18]} 61. Ka6 {[%emt 0:00:22]} a4 {[%emt 0:00:29]} 62. Kb6 {[%emt 0:00:04]} a3 {[%emt 0:00:21]} 63. Ka6 {[%emt 0:00:09]} a2 {[%emt 0:00:19]} 64. Ka7 {[%emt 0:00:23]} a1=Q+ {[%emt 0:00:25]} 65. Kb8 {[%emt 0:00:19]} Qe7 {[%emt 0:00:26]} 0-1

[Event "DVM U12w 2024"]
[Site "Bad Homburg"]
[Date "2024.12.27"]
[Round "1"]
[White "Rutschmann, Polly"]
[Black "Ramien, Eva"]
[Result "1-0"]
[ECO "C50"]
[WhiteElo "1072"]
[BlackElo "1542"]
[Annotator "NA"]
[PlyCount "25"]
[EventDate "2024.12.23"]
[EventType "team-tourn"]
[EventRounds "7"]
[EventCountry "GER"]
[SourceTitle "playchess.com"]
[Source "ChessBase"]
[SourceQuality "1"]
[TimeControl "40/5400+30:1800+30"]

1. e4 {[%emt 0:00:10]} e5 {[%emt 0:00:01]} 2. Nf3 {[%emt 0:00:13]} Nc6 {[%emt 0:00:06]} 3. Bc4 {[%emt 0:00:14]} Bc5 {[%emt 0:00:06]} 4. Nc3 {[%emt 0:00:27]} Nf6 {[%emt 0:00:08]} 5. d3 {[%emt 0:00:36]} d6 {[%emt 0:00:13]} 6. Qe2 {[%emt 0:01:11]} Bg4 {[%emt 0:00:12]} 7. h3 {[%emt 0:00:28]} Nd4 {[%emt 0:00:11]} 8. Qd1 {[%emt 0:00:55]} Nxf3+ {[%emt 0:02:05]} 9. gxf3 {[%emt 0:00:33]} Bd7 {[%emt 0:00:19]} 10. Qe2 {[%emt 0:01:16]} h6 {[%emt 0:00:42]} 11. Bd2 {[%emt 0:00:32]} a6 {[%emt 0:01:55]} 12. O-O-O {[%emt 0:04:50]} Qe7 {[%emt 0:00:17]} 13. Be3 {[%emt 0:04:45]} 1-0

[Event "DVM U12w 2024"]
[Site "Bad Homburg"]
[Date "2024.12.27"]
[Round "1"]
[White "Anaparthi, Anika"]
[Black "Winkler, Anni"]
[Result "1-0"]
[ECO "B22"]
[WhiteElo "1052"]
[BlackElo "1404"]
[Annotator "NA"]
[PlyCount "37"]
[EventDate "2024.12.23"]
[EventType "team-tourn"]
[EventRounds "7"]
[EventCountry "GER"]
[SourceTitle "playchess.com"]
[Source "ChessBase"]
[SourceQuality "1"]
[TimeControl "40/5400+30:1800+30"]

1. e4 {[%emt 0:00:02]} c5 {[%emt 0:00:35]} 2. c3 {[%emt 0:00:23]} e6 {[%emt 0:01:41]} 3. d4 {[%emt 0:01:13]} cxd4 {[%emt 0:01:03]} 4. cxd4 {[%emt 0:00:09]} d6 {[%emt 0:01:30]} 5. Nf3 {[%emt 0:00:49]} Nc6 {[%emt 0:02:21]} 6. Nc3 {[%emt 0:01:08]} d5 {[%emt 0:05:21]} 7. e5 {[%emt 0:11:20]} Qc7 {[%emt 0:02:18]} 8. Bg5 {[%emt 0:02:51]} h6 {[%emt 0:01:10]} 9. Be3 {[%emt 0:02:28]} f6 {[%emt 0:00:38]} 10. exf6 {[%emt 0:01:46]} Nxf6 {[%emt 0:01:22]} 11. Bd3 {[%emt 0:00:46]} Qf7 {[%emt 0:05:30]} 12. O-O {[%emt 0:03:05]} Bd6 {[%emt 0:00:44]} 13. Nb5 {[%emt 0:02:05]} Be7 {[%emt 0:02:28]} 14. Nc7+ {[%emt 0:00:38]} Kf8 {[%emt 0:01:44]} 15. Nxa8 {[%emt 0:00:13]} Bd6 {[%emt 0:00:39]} 16. Qd2 {[%emt 0:02:50]} b6 {[%emt 0:00:56]} 17. Bf4 {[%emt 0:00:42]} Qe7 {[%emt 0:02:48]} 18. Ne5 {[%emt 0:03:15]} Nxe5 {[%emt 0:01:47]} 19. dxe5 {[%emt 0:00:45]} 1-0

[Event "DVM U12w 2024"]
[Site "Bad Homburg"]
[Date "2024.12.27"]
[Round "1"]
[White "Mrugalski, Marie"]
[Black "Huang, Jasmin Shuya"]
[Result "0-1"]
[ECO "D02"]
[WhiteElo "1052"]
[BlackElo "1523"]
[Annotator "NA"]
[PlyCount "44"]
[EventDate "2024.12.23"]
[EventType "team-tourn"]
[EventRounds "7"]
[EventCountry "GER"]
[SourceTitle "playchess.com"]
[Source "ChessBase"]
[SourceQuality "1"]
[TimeControl "40/5400+30:1800+30"]

1. d4 {[%emt 0:00:03]} Nf6 {[%emt 0:00:05]} 2. Bf4 {[%emt 0:00:11]} d5 {[%emt 0:00:06]} 3. e3 {[%emt 0:00:15]} e6 {[%emt 0:00:18]} 4. Nf3 {[%emt 0:00:40]} c5 {[%emt 0:00:55]} 5. c4 {[%emt 0:02:27]} Bd6 {[%emt 0:03:41]} 6. Bg3 {[%emt 0:04:10]} O-O {[%emt 0:02:36]} 7. Bd3 {[%emt 0:01:25]} Nc6 {[%emt 0:01:04]} 8. Nc3 {[%emt 0:04:18]} a6 {[%emt 0:05:38]} 9. O-O {[%emt 0:02:02]} cxd4 {[%emt 0:03:12]} 10. exd4 {[%emt 0:01:48]} dxc4 {[%emt 0:01:32]} 11. Bxc4 {[%emt 0:01:17]} b5 {[%emt 0:01:29]} 12. Bd3 {[%emt 0:02:55]} Bb7 {[%emt 0:02:49]} 13. Qc2 {[%emt 0:03:00]} Bxg3 {[%emt 0:00:48]} 14. hxg3 {[%emt 0:00:11]} Nxd4 {[%emt 0:01:56]} 15. Nxd4 {[%emt 0:00:35]} Qxd4 {[%emt 0:00:12]} 16. Rae1 {[%emt 0:00:48]} Rac8 {[%emt 0:01:31]} 17. Qd2 {[%emt 0:01:55]} Rfd8 {[%emt 0:02:12]} 18. Re3 {[%emt 0:02:22]} Ng4 {[%emt 0:09:12]} 19. Ne2 {[%emt 0:06:15]} Qd6 {[%emt 0:01:44]} 20. Rd1 {[%emt 0:03:27]} Nxe3 {[%emt 0:02:03]} 21. Qxe3 {[%emt 0:00:14]} Qc6 {[%emt 0:01:12]} 22. Rc1 {[%emt 0:03:01]} Qxg2# {[%emt 0:00:14]} 0-1

[Event "DVM U12w 2024"]
[Site "Bad Homburg"]
[Date "2024.12.27"]
[Round "1"]
[White "Bykov, Sophia"]
[Black "Litvinchuk, Mariia"]
[Result "0-1"]
[ECO "C55"]
[WhiteElo "1033"]
[BlackElo "972"]
[Annotator "NA"]
[PlyCount "60"]
[EventDate "2024.12.23"]
[EventType "team-tourn"]
[EventRounds "7"]
[EventCountry "GER"]
[SourceTitle "playchess.com"]
[Source "ChessBase"]
[SourceQuality "1"]
[TimeControl "40/5400+30:1800+30"]

1. e4 {[%emt 0:00:02]} e5 {[%emt 0:00:01]} 2. Nf3 {[%emt 0:00:06]} Nc6 {[%emt 0:00:06]} 3. Nc3 {[%emt 0:00:11]} Nf6 {[%emt 0:00:06]} 4. Bc4 {[%emt 0:00:12]} Nxe4 {[%emt 0:01:21]} 5. d3 {[%emt 0:01:15]} Nxc3 {[%emt 0:00:18]} 6. bxc3 {[%emt 0:00:07]} d5 {[%emt 0:00:22]} 7. Bb3 {[%emt 0:00:32]} Bg4 {[%emt 0:00:30]} 8. c4 {[%emt 0:00:28]} d4 {[%emt 0:00:44]} 9. h3 {[%emt 0:00:35]} Bh5 {[%emt 0:00:05]} 10. g4 {[%emt 0:00:43]} Bg6 {[%emt 0:00:05]} 11. c5 {[%emt 0:00:21]} Bxc5 {[%emt 0:00:28]} 12. Ng5 {[%emt 0:00:30]} Bb4+ {[%emt 0:00:48]} 13. Bd2 {[%emt 0:00:35]} Qxg5 {[%emt 0:00:41]} 14. c3 {[%emt 0:00:58]} Bxc3 {[%emt 0:00:34]} 15. Bxc3 {[%emt 0:01:11]} dxc3 {[%emt 0:00:09]} 16. O-O {[%emt 0:02:09]} O-O-O {[%emt 0:01:18]} 17. Qc2 {[%emt 0:03:16]} Rxd3 {[%emt 0:01:04]} 18. Qe2 {[%emt 0:06:21]} Nd4 {[%emt 0:02:18]} 19. Qe1 {[%emt 0:02:05]} Nf3+ {[%emt 0:00:28]} 20. Kg2 {[%emt 0:01:05]} Nxe1+ {[%emt 0:00:10]} 21. Raxe1 {[%emt 0:00:04]} h5 {[%emt 0:01:17]} 22. Bc2 {[%emt 0:01:10]} Rd5 {[%emt 0:02:06]} 23. Bxg6 {[%emt 0:01:28]} Qxg6 {[%emt 0:00:13]} 24. f3 {[%emt 0:00:08]} f5 {[%emt 0:00:53]} 25. Kg3 {[%emt 0:01:27]} hxg4 {[%emt 0:00:00]} 26. hxg4 {[%emt 0:00:19]} Rd3 {[%emt 0:01:08]} 27. Rxe5 {[%emt 0:02:23]} Qxg4+ {[%emt 0:00:31]} 28. Kf2 {[%emt 0:00:19]} Qxf3+ {[%emt 0:01:07]} 29. Ke1 {[%emt 0:00:10]} Qg3+ {[%emt 0:01:42]} 30. Ke2 {[%emt 0:00:07]} Rd2# {[%emt 0:00:38]} 0-1

[Event "DVM U12w 2024"]
[Site "Bad Homburg"]
[Date "2024.12.27"]
[Round "1"]
[White "Scarlat-Timofte, Elena"]
[Black "Henn, Lena"]
[Result "0-1"]
[ECO "B07"]
[WhiteElo "1024"]
[BlackElo "808"]
[Annotator "NA RC"]
[PlyCount "74"]
[EventDate "2024.12.23"]
[EventType "team-tourn"]
[EventRounds "7"]
[EventCountry "GER"]
[SourceTitle "playchess.com"]
[Source "ChessBase"]
[SourceQuality "1"]
[TimeControl "40/5400+30:1800+30"]

1. e4 {[%emt 0:00:02]} d6 {[%emt 0:00:07]} 2. Nf3 {[%emt 0:00:13]} Nf6 {[%emt 0:00:13]} 3. Nc3 {[%emt 0:00:06]} g6 {[%emt 0:00:07]} 4. Bc4 {[%emt 0:00:17]} Bg7 {[%emt 0:00:13]} 5. d3 {[%emt 0:01:19]} O-O {[%emt 0:00:30]} 6. Bg5 {[%emt 0:00:16]} c6 {[%emt 0:00:44]} 7. O-O {[%emt 0:03:03]} a5 {[%emt 0:01:54]} 8. e5 {[%emt 0:01:39]} dxe5 {[%emt 0:01:58]} 9. Nxe5 {[%emt 0:00:45]} b5 {[%emt 0:01:19]} 10. Bb3 {[%emt 0:01:45]} a4 {[%emt 0:00:14]} 11. Nxf7 {[%emt 0:01:33]} Rxf7 {[%emt 0:00:15]} 12. Bxf7+ {[%emt 0:00:40]} Kxf7 {[%emt 0:00:08]} 13. Qf3 {[%emt 0:02:10]} Qd6 {[%emt 0:10:25]} 14. Ne4 {[%emt 0:01:41]} Qe6 {[%emt 0:01:07]} 15. Nc5 {[%emt 0:01:01]} Qe5 {[%emt 0:02:40]} 16. Ne4 {[%emt 0:00:47]} Nbd7 {[%emt 0:02:22]} 17. Bf4 {[%emt 0:01:28]} Qf5 {[%emt 0:04:54]} 18. Ng5+ {[%emt 0:01:25]} Kg8 {[%emt 0:02:07]} 19. Qe3 {[%emt 0:02:02]} Nd5 {[%emt 0:01:23]} 20. Qf3 {[%emt 0:04:20]} Nxf4 {[%emt 0:00:25]} 21. Ne4 {[%emt 0:01:34]} Ne5 {[%emt 0:01:42]} 22. Qe3 {[%emt 0:04:19]} Ng4 {[%emt 0:00:53]} 23. Qf3 {[%emt 0:03:19]} Qe5 {[%emt 0:01:20]} 24. Qxg4 {[%emt 0:00:37]} Bxg4 {[%emt 0:00:12]} 25. h3 {[%emt 0:01:23]} Bf5 {[%emt 0:01:32]} 26. Rae1 {[%emt 0:00:52]} Qxb2 {[%emt 0:01:07]} 27. Ng5 {[%emt 0:03:06]} Bf6 {[%emt 0:00:41]} 28. Ne4 {[%emt 0:00:51]} Qxa2 {[%emt 0:01:14]} 29. g3 {[%emt 0:04:43]} Nxh3+ {[%emt 0:00:23]} 30. Kg2 {[%emt 0:01:20]} Qxc2 {[%emt 0:00:11]} 31. Re3 {[%emt 0:02:48]} Rd8 {[%emt 0:00:25]} 32. Nxf6+ {[%emt 0:02:54]} exf6 {[%emt 0:00:20]} 33. d4 {[%emt 0:03:27]} Rxd4 {[%emt 0:01:19]} 34. Re8+ {[%emt 0:01:03]} Kg7 {[%emt 0:00:15]} 35. Re7+ {[%emt 0:00:20]} Kh6 {[%emt 0:00:20]} 36. Rf7 {[%emt 0:06:20]} Qe4+ {[%emt 0:00:20]} 37. Kh2 {[%emt 0:02:37]} Qe2 {[%emt 0:00:59]} 0-1

[Event "DVM U12w 2024"]
[Site "Bad Homburg"]
[Date "2024.12.27"]
[Round "1"]
[White "Seyedfakhari, Elena"]
[Black "Gelbach, Amelia"]
[Result "0-1"]
[ECO "B40"]
[WhiteElo "986"]
[BlackElo "809"]
[Annotator "NA"]
[PlyCount "58"]
[EventDate "2024.12.23"]
[EventType "team-tourn"]
[EventRounds "7"]
[EventCountry "GER"]
[SourceTitle "playchess.com"]
[Source "ChessBase"]
[SourceQuality "1"]
[TimeControl "40/5400+30:1800+30"]

1. e4 {[%emt 0:00:02]} c5 {[%emt 0:00:18]} 2. Nf3 {[%emt 0:00:15]} e6 {[%emt 0:00:38]} 3. d4 {[%emt 0:00:23]} cxd4 {[%emt 0:00:40]} 4. Nxd4 {[%emt 0:00:22]} Nf6 {[%emt 0:00:22]} 5. Nc3 {[%emt 0:00:26]} Bb4 {[%emt 0:01:23]} 6. a3 {[%emt 0:00:36]} Bxc3+ {[%emt 0:00:31]} 7. bxc3 {[%emt 0:00:27]} Nxe4 {[%emt 0:02:09]} 8. Qg4 {[%emt 0:00:24]} Qa5 {[%emt 0:12:01]} 9. Qf3 {[%emt 0:00:57]} Nxc3 {[%emt 0:06:33]} 10. Nb3 {[%emt 0:01:07]} Qe5+ {[%emt 0:05:24]} 11. Kd2 {[%emt 0:00:59]} Nd5 {[%emt 0:03:42]} 12. Bc4 {[%emt 0:00:49]} Nf6 {[%emt 0:06:38]} 13. g3 {[%emt 0:00:58]} O-O {[%emt 0:01:19]} 14. Re1 {[%emt 0:00:31]} Qc7 {[%emt 0:03:30]} 15. Bd3 {[%emt 0:01:18]} Nc6 {[%emt 0:01:24]} 16. Qg2 {[%emt 0:00:33]} d5 {[%emt 0:02:26]} 17. Bb2 {[%emt 0:00:40]} Qe7 {[%emt 0:02:42]} 18. Bxf6 {[%emt 0:00:21]} Qxf6 {[%emt 0:00:22]} 19. Qh3 {[%emt 0:00:26]} g6 {[%emt 0:01:24]} 20. g4 {[%emt 0:01:18]} Qxf2+ {[%emt 0:02:26]} 21. Re2 {[%emt 0:00:41]} Qf4+ {[%emt 0:01:08]} 22. Re3 {[%emt 0:00:36]} d4 {[%emt 0:01:10]} 23. Nxd4 {[%emt 0:00:32]} Qxd4 {[%emt 0:00:28]} 24. Rf1 {[%emt 0:01:12]} Ne5 {[%emt 0:02:06]} 25. Rg1 {[%emt 0:01:03]} Bd7 {[%emt 0:01:07]} 26. Qh4 {[%emt 0:00:34]} Nc4+ {[%emt 0:06:59]} 27. Ke2 {[%emt 0:00:37]} Qxe3+ {[%emt 0:00:56]} 28. Kf1 {[%emt 0:00:31]} Nd2+ {[%emt 0:01:20]} 29. Kg2 {[%emt 0:00:43]} Qf3# {[%emt 0:00:34]} 0-1

[Event "DVM U12w 2024"]
[Site "Bad Homburg"]
[Date "2024.12.27"]
[Round "1"]
[White "Rabus, Luise"]
[Black "Augustin, Luisa"]
[Result "1/2-1/2"]
[ECO "C29"]
[WhiteElo "983"]
[BlackElo "797"]
[Annotator "NA"]
[PlyCount "39"]
[EventDate "2024.12.23"]
[EventType "team-tourn"]
[EventRounds "7"]
[EventCountry "GER"]
[SourceTitle "playchess.com"]
[Source "ChessBase"]
[SourceQuality "1"]
[TimeControl "40/5400+30:1800+30"]

1. e4 {[%emt 0:00:02]} e5 {[%emt 0:00:04]} 2. Nc3 {[%emt 0:00:14]} Nf6 {[%emt 0:00:09]} 3. f4 {[%emt 0:00:10]} exf4 {[%emt 0:00:18]} 4. e5 {[%emt 0:00:06]} Ng8 {[%emt 0:00:40]} 5. Nf3 {[%emt 0:00:12]} Nc6 {[%emt 0:00:13]} 6. d4 {[%emt 0:00:12]} d6 {[%emt 0:00:42]} 7. Bxf4 {[%emt 0:00:13]} dxe5 {[%emt 0:00:17]} 8. dxe5 {[%emt 0:00:32]} Qxd1+ {[%emt 0:00:00]} 9. Rxd1 Bg4 {[%emt 0:00:23]} 10. Be2 {[%emt 0:01:08]} Bc5 {[%emt 0:00:19]} 11. a3 {[%emt 0:00:00]} Bd4 {[%emt 0:00:34]} 12. Nxd4 {[%emt 0:00:41]} Nxd4 {[%emt 0:00:09]} 13. Bxg4 {[%emt 0:00:18]} g6 {[%emt 0:00:34]} 14. Be3 {[%emt 0:00:29]} Nxc2+ {[%emt 0:00:18]} 15. Kf2 {[%emt 0:02:23]} b5 {[%emt 0:00:07]} 16. Ke2 {[%emt 0:00:11]} b4 {[%emt 0:00:18]} 17. Kd2 {[%emt 0:00:00]} b3 {[%emt 0:01:43]} 18. a4 {[%emt 0:00:00]} g5 {[%emt 0:00:00]} 19. Ra1 {[%emt 0:00:00]} Ke7 {[%emt 0:00:00]} 20. h4 {[%emt 0:00:00]} 1/2-1/2

[Event "DVM U12w 2024"]
[Site "Bad Homburg"]
[Date "2024.12.27"]
[Round "1"]
[White "Kessler, Lisbeth Erna"]
[Black "Wang, Lexin Selina"]
[Result "1-0"]
[ECO "C50"]
[WhiteElo "926"]
[BlackElo "920"]
[Annotator "NA RC"]
[PlyCount "91"]
[EventDate "2024.12.23"]
[EventType "team-tourn"]
[EventRounds "7"]
[EventCountry "GER"]
[SourceTitle "playchess.com"]
[Source "ChessBase"]
[SourceQuality "1"]
[TimeControl "40/5400+30:1800+30"]

1. e4 {[%emt 0:00:01]} e5 {[%emt 0:00:06]} 2. Nf3 {[%emt 0:00:04]} Nc6 {[%emt 0:00:10]} 3. Bc4 {[%emt 0:00:08]} Bc5 {[%emt 0:00:22]} 4. d3 {[%emt 0:00:35]} d6 {[%emt 0:00:24]} 5. O-O {[%emt 0:00:57]} Nf6 {[%emt 0:00:52]} 6. Bg5 {[%emt 0:01:16]} h6 {[%emt 0:00:57]} 7. Bxf6 {[%emt 0:00:49]} Qxf6 {[%emt 0:00:24]} 8. Nc3 {[%emt 0:00:42]} Bg4 {[%emt 0:00:26]} 9. Nd5 {[%emt 0:01:41]} Qd8 {[%emt 0:04:20]} 10. Bb5 {[%emt 0:01:30]} O-O {[%emt 0:01:28]} 11. Re1 {[%emt 0:01:38]} Nd4 {[%emt 0:02:29]} 12. Ba4 {[%emt 0:01:28]} Bxf3 {[%emt 0:02:31]} 13. gxf3 {[%emt 0:00:13]} Qg5+ {[%emt 0:02:47]} 14. Kf1 {[%emt 0:01:10]} c6 {[%emt 0:08:30]} 15. Nc3 {[%emt 0:02:41]} Qf4 {[%emt 0:02:24]} 16. Kg2 {[%emt 0:02:49]} Qg5+ {[%emt 0:04:02]} 17. Kf1 {[%emt 0:02:10]} Qh4 {[%emt 0:01:10]} 18. Kg1 {[%emt 0:02:03]} Rae8 {[%emt 0:03:59]} 19. Bb3 {[%emt 0:05:50]} Nxb3 {[%emt 0:02:20]} 20. axb3 {[%emt 0:00:24]} Qxf2+ {[%emt 0:01:51]} 21. Kh1 {[%emt 0:00:26]} Re6 {[%emt 0:01:22]} 22. Rf1 {[%emt 0:01:58]} Qh4 {[%emt 0:06:34]} 23. Qe1 {[%emt 0:01:09]} Qh3 {[%emt 0:01:52]} 24. Ne2 {[%emt 0:02:17]} Rf6 {[%emt 0:00:30]} 25. Qg3 {[%emt 0:01:43]} Qxg3 {[%emt 0:06:27]} 26. Nxg3 {[%emt 0:00:39]} a6 {[%emt 0:00:55]} 27. Nh5 {[%emt 0:00:37]} Rg6 {[%emt 0:00:27]} 28. f4 {[%emt 0:00:12]} d5 {[%emt 0:03:38]} 29. fxe5 {[%emt 0:00:22]} Rg5 {[%emt 0:00:37]} 30. Rf5 {[%emt 0:01:32]} dxe4 {[%emt 0:03:51]} 31. dxe4 {[%emt 0:00:14]} Re8 {[%emt 0:01:27]} 32. Rxg5 {[%emt 0:01:21]} hxg5 {[%emt 0:00:20]} 33. Ng3 {[%emt 0:00:45]} Rxe5 {[%emt 0:00:30]} 34. c3 {[%emt 0:00:48]} Bf2 {[%emt 0:01:50]} 35. Ra4 {[%emt 0:02:08]} g4 {[%emt 0:00:34]} 36. Ne2 {[%emt 0:00:49]} Rh5 {[%emt 0:00:51]} 37. Kg2 {[%emt 0:02:52]} Be3 {[%emt 0:02:18]} 38. Kg3 {[%emt 0:00:40]} Rh3+ {[%emt 0:01:28]} 39. Kg2 {[%emt 0:01:04]} Kh7 {[%emt 0:01:35]} 40. e5 {[%emt 0:00:19]} f5 {[%emt 0:02:45]} 41. e6 {[%emt 0:31:07]} Kg8 {[%emt 0:30:16]} 42. Nd4 {[%emt 0:02:34]} Bf4 {[%emt 0:01:07]} 43. Nxf5 {[%emt 0:01:44]} Rxh2+ {[%emt 0:00:38]} 44. Kg1 {[%emt 0:00:15]} g5 {[%emt 0:01:25]} 45. e7 {[%emt 0:01:23]} Kf7 {[%emt 0:00:22]} 46. Re4 {[%emt 0:00:27]} 1-0

[Event "DVM U12w 2024"]
[Site "Bad Homburg"]
[Date "2024.12.27"]
[Round "1"]
[White "Kuznetsova, Sofia"]
[Black "Ulianova, Anna"]
[Result "0-1"]
[ECO "C50"]
[WhiteElo "926"]
[BlackElo "1267"]
[Annotator "NA"]
[PlyCount "44"]
[EventDate "2024.12.23"]
[EventType "team-tourn"]
[EventRounds "7"]
[EventCountry "GER"]
[SourceTitle "playchess.com"]
[Source "ChessBase"]
[SourceQuality "1"]
[TimeControl "40/5400+30:1800+30"]

1. e4 {[%emt 0:00:02]} e5 {[%emt 0:00:11]} 2. Nf3 {[%emt 0:00:05]} Nc6 {[%emt 0:00:17]} 3. Bc4 {[%emt 0:00:08]} Bc5 {[%emt 0:00:54]} 4. Nc3 {[%emt 0:00:10]} Nf6 {[%emt 0:00:25]} 5. O-O {[%emt 0:00:09]} d6 {[%emt 0:00:11]} 6. d3 {[%emt 0:00:10]} h6 {[%emt 0:00:35]} 7. h3 {[%emt 0:00:09]} O-O {[%emt 0:00:12]} 8. Be3 {[%emt 0:00:41]} Bb6 {[%emt 0:00:22]} 9. Nd5 {[%emt 0:02:20]} Kh8 {[%emt 0:01:52]} 10. Qe2 {[%emt 0:05:36]} Nxd5 {[%emt 0:01:28]} 11. exd5 {[%emt 0:00:11]} Nd4 {[%emt 0:00:12]} 12. c3 {[%emt 0:01:15]} Nxe2+ {[%emt 0:00:54]} 13. Kh1 {[%emt 0:00:35]} f5 {[%emt 0:00:28]} 14. g3 {[%emt 0:01:35]} Bxe3 {[%emt 0:01:05]} 15. fxe3 {[%emt 0:00:18]} Nxg3+ {[%emt 0:00:19]} 16. Kg1 {[%emt 0:00:11]} Nxf1 {[%emt 0:00:22]} 17. Kxf1 {[%emt 0:00:06]} f4 {[%emt 0:00:25]} 18. exf4 {[%emt 0:00:27]} exf4 {[%emt 0:00:17]} 19. Nd4 {[%emt 0:00:15]} Bxh3+ {[%emt 0:00:13]} 20. Kf2 {[%emt 0:00:07]} Qh4+ {[%emt 0:00:08]} 21. Ke2 {[%emt 0:00:34]} Rae8+ {[%emt 0:00:09]} 22. Kd2 {[%emt 0:00:48]} Qf2+ {[%emt 0:04:27]} 0-1